Workbook

Sheet PowerSeries
B1: Power Series Approximations
B3: This graphing utility lets you investigate
B4: successive power series approximations
C5: to any function
C6: based on the coefficients
C7: centered about x = c.
A10: Enter each coefficient as a decimal:
B11: The constant coefficient a0 = | F11: 2
B13: The linear coefficient a1 = | F13: 0.5
B15: The quadratic coefficient a2 = | F15: -0.4
B17: The cubic coefficient a3 = | F17: 0.06
B19: The quartic coefficient a4 = | F19: -0.01 | I19: Now select all the power series approximations you want to see
B21: The quintic coefficient a5 = | F21: 0.004 | J21: TRUE
J23: TRUE
A24: What is the center point c for (x- c)k? | F24: 2
J25: TRUE
A28: Enter the interval for x: | J28: TRUE
C29: xMin = | D29: -1
C30: xMax = | D30: 3 | J30: TRUE
J33: TRUE
A38: Click each item below for suggestions and investigations
C39: Item 1
C40: Item 2
C41: Item 3
C42: Item 4
C43: Item 5
A47: To access/download all the DIGMath Apps for Calculus
A48: Click this link: | C48: DIGMath for Calculus
A50: Created by: Sheldon P. Gordon
A51: Farmingdale State College
A52: Development of this module was supported by the
A53: NSF's Division of Undergraduate Education
A54: under grants DUE-0310123 and DUE-0442160.

Sheet Sheet1
A1: Constant
A2: =IF(PowerSeries!$J21=FALSE, cc, a) -> -1 | B2: =a0 -> 2
A3: =IF(PowerSeries!$J21=FALSE, cc, b) -> 3 | B3: =a0 -> 2
A5: Linear
A6: =IF(PowerSeries!$J23=FALSE, cc, a) -> -1 | B6: =IF(PowerSeries!$J23=FALSE, a0, a0+b0*(a-cc)) -> 0.5
A7: =IF(PowerSeries!$J23=FALSE, cc, b) -> 3 | B7: =IF(PowerSeries!$J23=FALSE, a0, a0+b0*(b-cc)) -> 2.5
A9: Quadratic
A10: =IF(PowerSeries!$J25=FALSE, cc, a) -> -1 | B10: =IF(PowerSeries!$J25=FALSE, a0, a0+b0*(a-cc)+c0*(a-cc)^2) -> -3.1
A11: =cc -> 2 | B11: =a0 -> 2
A12: =IF(PowerSeries!J$25=FALSE,cc,b) -> 3 | B12: =IF(PowerSeries!$J25=FALSE, a0, a0+b0*(b-cc)+c0*(b-cc)^2) -> 2.1
A14: Cubic
A15: =IF(PowerSeries!$J28=FALSE, cc, a) -> -1 | B15: =IF(PowerSeries!$J$28=FALSE, a0, a0+b0*(a-cc)+c0*(a-cc)^2+d0*(a-cc)^3) -> -4.72
A16: =IF(PowerSeries!J28=FALSE,cc,a+(b-a)/3) -> 0.3333333333 | B16: =IF(PowerSeries!$J$28=FALSE, a0, a0+b0*(A16-cc)+c0*(A16-cc)^2+d0*(A16-cc)^3) -> -0.2222222222
A17: =IF(PowerSeries!J28=FALSE,cc,a+2*(b-a)/3) -> 1.666666667 | B17: =IF(PowerSeries!$J$28=FALSE, a0, a0+b0*(A17-cc)+c0*(A17-cc)^2+d0*(A17-cc)^3) -> 1.786666667
A18: =IF(PowerSeries!J28=FALSE,a,b) -> 3 | B18: =IF(PowerSeries!$J$28=FALSE, a0, a0+b0*(A18-cc)+c0*(A18-cc)^2+d0*(A18-cc)^3) -> 2.16
A20: Quartic
A21: =IF(PowerSeries!$J30=FALSE, cc, a) -> -1 | B21: =IF(PowerSeries!$J$30=FALSE, a0, a0+b0*(a-cc)+c0*(a-cc)^2+d0*(a-cc)^3+e0*(a-cc)^4) -> -5.53
A22: =IF(PowerSeries!J$30=FALSE,cc,a+(b-a)/4) -> 0 | B22: =IF(PowerSeries!$J$30=FALSE, a0, a0+b0*(A22-cc)+c0*(A22-cc)^2+d0*(A22-cc)^3+e0*(A22-cc)^4) -> -1.24
A23: =IF(PowerSeries!J$30=FALSE,cc,a+2*(b-a)/4) -> 1 | B23: =IF(PowerSeries!$J$30=FALSE, a0, a0+b0*(A23-cc)+c0*(A23-cc)^2+d0*(A23-cc)^3+e0*(A23-cc)^4) -> 1.03
A24: =IF(PowerSeries!J$30=FALSE,cc,a+3*(b-a)/4) -> 2 | B24: =IF(PowerSeries!$J$30=FALSE, a0, a0+b0*(A24-cc)+c0*(A24-cc)^2+d0*(A24-cc)^3+e0*(A24-cc)^4) -> 2
A25: =IF(PowerSeries!J$30=FALSE,cc,a+4*(b-a)/4) -> 3 | B25: =IF(PowerSeries!$J$30=FALSE, a0, a0+b0*(A25-cc)+c0*(A25-cc)^2+d0*(A25-cc)^3+e0*(A25-cc)^4) -> 2.15
A27: Quintic
A28: =IF(PowerSeries!$J33=FALSE, cc, a) -> -1 | B28: =IF(PowerSeries!$J$33=FALSE, a0, a0+b0*(a-cc)+c0*(a-cc)^2+d0*(a-cc)^3+e0*(a-cc)^4+f0*(a-cc)^5) -> -6.502
A29: =IF(PowerSeries!J$33=FALSE,cc,a+1*(b-a)/5) -> -0.2 | B29: =IF(PowerSeries!$J$33=FALSE, a0, a0+b0*(A29-cc)+c0*(A29-cc)^2+d0*(A29-cc)^3+e0*(A29-cc)^4+f0*(A29-cc)^5) -> -2.11528128
A30: =IF(PowerSeries!J$33=FALSE,cc,a+2*(b-a)/5) -> 0.6 | B30: =IF(PowerSeries!$J$33=FALSE, a0, a0+b0*(A30-cc)+c0*(A30-cc)^2+d0*(A30-cc)^3+e0*(A30-cc)^4+f0*(A30-cc)^5) -> 0.29143104
A31: =IF(PowerSeries!J$33=FALSE,cc,a+3*(b-a)/5) -> 1.4 | B31: =IF(PowerSeries!$J$33=FALSE, a0, a0+b0*(A31-cc)+c0*(A31-cc)^2+d0*(A31-cc)^3+e0*(A31-cc)^4+f0*(A31-cc)^5) -> 1.54143296
A32: =IF(PowerSeries!J$33=FALSE,cc,a+4*(b-a)/5) -> 2.2 | B32: =IF(PowerSeries!$J$33=FALSE, a0, a0+b0*(A32-cc)+c0*(A32-cc)^2+d0*(A32-cc)^3+e0*(A32-cc)^4+f0*(A32-cc)^5) -> 2.08446528
A33: =IF(PowerSeries!J$33=FALSE,cc,a+5*(b-a)/5) -> 3 | B33: =IF(PowerSeries!$J$33=FALSE, a0, a0+b0*(A33-cc)+c0*(A33-cc)^2+d0*(A33-cc)^3+e0*(A33-cc)^4+f0*(A33-cc)^5) -> 2.154
